fUSD/lending_fUSD_20250219
["ID","MTS","AMOUNT","RATE_DAILY","PERIOD"]
[353697610,1739992237807,-500.0,0.00011201,2]
[353697611,1739992237817,-167.95,0.00011201,2]
[353697612,1739992237827,-666.21,0.00011201,2]
[353697613,1739992237842,-500.0,0.00011201,2]
[353697614,1739992237852,-500.0,0.00011201,2]
[353697615,1739992237862,-500.0,0.00011201,2]
[353697616,1739992237872,-1743.06,0.00011201,2]
[353697617,1739992237882,-500.0,0.00011201,2]
[353697618,1739992237892,-500.0,0.00011201,2]
[353697619,1739992237902,-500.0,0.00011201,2]
[353697620,1739992237914,-500.0,0.00011201,2]
[353697621,1739992237925,-500.0,0.00011201,2]
[353697622,1739992237934,-500.0,0.00011201,2]
[353697623,1739992237944,-234.09741788,0.00011201,2]
[353697624,1739992237954,-500.0,0.00011201,2]
[353697625,1739992237963,-625.08,0.00011201,2]
[353697626,1739992237972,-500.0,0.00011201,2]
[353697627,1739992237982,-500.0,0.00011201,2]
[353697628,1739992237991,-500.0,0.00011201,2]
[353697629,1739992238000,-713.14,0.00011201,2]
[353697630,1739992238010,-500.0,0.00011201,2]
[353697631,1739992238020,-500.0,0.00011201,2]
[353697632,1739992238029,-500.0,0.00011201,2]
[353697633,1739992238039,-500.0,0.00011201,2]
[353697634,1739992238048,-500.0,0.00011201,2]
[353697635,1739992238057,-507.75,0.00011202,2]
[353697636,1739992238067,-500.0,0.00011202,2]
[353697637,1739992238076,-500.0,0.00011202,2]
[353697638,1739992238086,-500.0,0.00011202,2]
[353697639,1739992238095,-500.0,0.00011202,2]
[353697640,1739992238104,-500.0,0.00011202,2]
[353697641,1739992238113,-500.0,0.00011202,2]
[353697643,1739992238123,-500.0,0.00011202,2]
[353697645,1739992238133,-500.0,0.00011202,2]
[353697647,1739992238142,-500.0,0.00011202,2]
[353697649,1739992238163,-500.0,0.00011202,2]
[353697650,1739992238172,-500.0,0.00011202,2]
[353697652,1739992238182,-500.0,0.00011202,2]
[353697653,1739992238192,-500.0,0.00011202,2]
[353697654,1739992238202,-500.0,0.00011202,2]
[353697655,1739992238212,-500.0,0.00011202,2]
[353697656,1739992238223,-500.0,0.00011202,2]
[353697657,1739992238232,-500.0,0.00011202,2]
[353697658,1739992238242,-500.0,0.00011202,2]
[353697659,1739992238252,-500.0,0.00011202,2]
[353697660,1739992238263,-500.0,0.00011202,2]
[353697661,1739992238274,-500.0,0.00011202,2]
[353697662,1739992238284,-500.0,0.00011202,2]
[353697663,1739992238294,-500.0,0.00011202,2]
[353697664,1739992238304,-500.0,0.00011202,2]
[353697665,1739992238314,-500.0,0.00011202,2]
[353697666,1739992238324,-500.0,0.00011202,2]
[353697667,1739992238335,-500.0,0.00011202,2]
[353697668,1739992238346,-500.0,0.00011202,2]
[353697669,1739992238356,-500.0,0.00011202,2]
[353697670,1739992238367,-419.22,0.00011251,2]
[353697671,1739992238376,-1118.93,0.00011283,2]
[353697672,1739992238387,-500.0,0.00011283,2]
[353697673,1739992238397,-500.0,0.00011283,2]
[353697674,1739992238407,-500.0,0.00011283,2]
[353697675,1739992238417,-500.0,0.00011283,2]
[353697676,1739992238428,-500.0,0.00011283,2]
[353697677,1739992238438,-500.0,0.00011283,2]
[353697678,1739992238448,-500.0,0.00011283,2]
[353697679,1739992238459,-892.39,0.00011283,2]
[353697680,1739992238469,-500.0,0.00011283,2]
[353697681,1739992238479,-500.0,0.00011283,2]
[353697682,1739992238490,-500.0,0.00011283,2]
[353697683,1739992238500,-500.0,0.00011283,2]
[353697684,1739992238511,-500.0,0.00011283,2]
[353697685,1739992238521,-500.0,0.00011283,2]
[353697686,1739992238531,-500.0,0.00011283,2]
[353697687,1739992238541,-500.0,0.00011283,2]
[353697688,1739992238551,-500.0,0.00011283,2]
[353697689,1739992238562,-500.0,0.00011283,2]
[353697690,1739992238573,-500.0,0.00011283,2]
[353697691,1739992238583,-500.0,0.00011283,2]
[353697692,1739992238593,-500.0,0.00011283,2]
[353697693,1739992238604,-500.0,0.00011283,2]
[353697694,1739992238614,-500.0,0.00011283,2]
[353697695,1739992238624,-500.0,0.00011283,2]
[353697696,1739992238634,-500.0,0.00011283,2]
[353697697,1739992238645,-500.0,0.00011283,2]
[353697698,1739992238656,-500.0,0.00011283,2]
[353697699,1739992238667,-500.0,0.00011283,2]
[353697700,1739992238678,-500.0,0.00011283,2]
[353697701,1739992238689,-500.0,0.00011283,2]
[353697702,1739992238699,-500.0,0.00011283,2]
[353697703,1739992238710,-500.0,0.00011283,2]
[353697704,1739992238719,-500.0,0.00011283,2]
[353697705,1739992238730,-23.91943932,0.00011283,2]
[353697706,1739992238782,-272.80967872,0.00011283,2]
[353697771,1739992241154,-264.44400002,0.00011119,2]
[353697774,1739992241180,-244.17599998,0.00011119,2]
[353697776,1739992241190,-500.0,0.00011119,2]
[353697778,1739992241199,-500.0,0.00011119,2]
[353697780,1739992241208,-500.0,0.00011119,2]
[353697782,1739992241217,-171.6416867,0.00011201,2]
[353697798,1739992242900,-500.0,0.00011119,2]
[353697799,1739992242912,-328.3583133,0.00011201,2]
[353697800,1739992242922,-502.99965847,0.00011201,2]
[353697801,1739992242931,-500.0,0.00011201,2]
[353697802,1739992242940,-500.0,0.00011201,2]
[353697803,1739992242950,-203.27088196,0.00011283,2]
[353697804,1739992242959,-616.92,0.00011283,2]
[353697805,1739992242968,-500.0,0.00011283,2]
[353697806,1739992242977,-500.0,0.00011283,2]
[353697807,1739992242986,-500.0,0.00011283,2]
[353697808,1739992242996,-500.0,0.00011283,2]
[353697809,1739992243008,-500.0,0.00011283,2]
[353697810,1739992243017,-500.0,0.00011283,2]
[353697811,1739992243026,-500.0,0.00011283,2]
[353697812,1739992243035,-500.0,0.00011283,2]
[353697813,1739992243044,-500.0,0.00011283,2]
[353697814,1739992243054,-500.0,0.00011283,2]
[353697815,1739992243063,-521.34,0.00011283,2]
[353697816,1739992243072,-500.0,0.00011283,2]
[353697817,1739992243082,-500.0,0.00011283,2]
[353697818,1739992243091,-500.0,0.00011283,2]
[353697819,1739992243100,-500.0,0.00011283,2]
[353697820,1739992243110,-500.0,0.00011283,2]
[353697822,1739992243119,-523.88,0.00011283,2]
[353697824,1739992243128,-500.0,0.00011283,2]
[353697826,1739992243137,-500.0,0.00011283,2]
[353697827,1739992243147,-500.0,0.00011283,2]
[353697828,1739992243156,-837.03,0.00011283,2]
[353697829,1739992243165,-598.18,0.00011283,2]
[353697830,1739992243174,-557.55,0.00011283,2]
[353697831,1739992243184,-988.12,0.00011283,2]
[353697832,1739992243193,-220.766741,0.00011283,2]
[353697833,1739992243203,-517.01,0.00011283,2]
[353697834,1739992243212,-641.09,0.00011283,2]
[353697835,1739992243222,-500.0,0.00011283,2]
[353697836,1739992243232,-2726.44,0.00011283,2]
[353697837,1739992243243,-500.0,0.00011283,2]
[353697838,1739992243252,-660.4,0.00011283,2]
[353697839,1739992243262,-610.74,0.00011283,2]
[353697840,1739992243272,-500.0,0.00011283,2]
[353697841,1739992243281,-1957.46,0.00011283,2]
[353697842,1739992243291,-500.0,0.00011283,2]
[353697843,1739992243300,-180.006349,0.00011283,2]
[353697844,1739992243310,-500.0,0.00011283,2]
[353697845,1739992243321,-500.0,0.00011283,2]
[353697846,1739992243331,-500.0,0.00011283,2]
[353697847,1739992243340,-500.0,0.00011283,2]
[353697848,1739992243350,-575.76,0.00011283,2]
[353697849,1739992243360,-500.0,0.00011283,2]
[353697850,1739992243370,-675.36,0.00011283,2]
[353697851,1739992243379,-602.94,0.00011283,2]
[353697852,1739992243388,-500.0,0.00011283,2]
[353697853,1739992243398,-500.0,0.00011283,2]
[353697854,1739992243408,-500.0,0.00011283,2]
[353697855,1739992243418,-500.0,0.00011283,2]
[353697856,1739992243428,-500.0,0.00011283,2]
[353697857,1739992243437,-535.01,0.00011283,2]
[353697858,1739992243446,-710.6,0.00011283,2]
[353697859,1739992243456,-500.0,0.00011283,2]
[353697860,1739992243465,-500.0,0.00011283,2]
[353697861,1739992243475,-500.0,0.00011283,2]
[353697862,1739992243484,-563.28,0.00011283,2]
[353697863,1739992243495,-664.72,0.00011283,2]
[353697864,1739992243504,-616.24,0.00011283,2]
[353697865,1739992243514,-580.23,0.00011283,2]
[353697866,1739992243523,-500.0,0.00011283,2]
[353697867,1739992243532,-511.6,0.00011283,2]
[353697868,1739992243541,-503.11,0.00011283,2]
[353697869,1739992243550,-1612.26,0.00011283,2]
[353697870,1739992243559,-500.0,0.00011283,2]
[353697871,1739992243569,-500.0,0.00011283,2]
[353697872,1739992243578,-500.0,0.00011283,2]
[353697873,1739992243587,-584.84,0.00011283,2]
[353697874,1739992243596,-509.67,0.00011283,2]
[353697875,1739992243606,-772.14,0.00011283,2]
[353697876,1739992243615,-520.79,0.00011283,2]
[353697877,1739992243625,-500.0,0.00011283,2]
[353697878,1739992243634,-849.59,0.00011283,2]
[353697879,1739992243644,-500.0,0.00011283,2]
[353697880,1739992243653,-1202.49,0.00011283,2]
[353697881,1739992243664,-749.4,0.00011283,2]
[353697882,1739992243675,-500.0,0.00011283,2]
[353697883,1739992243684,-1031.01,0.00011283,2]
[353697884,1739992243693,-500.0,0.00011283,2]
[353697885,1739992243703,-601.65,0.00011283,2]
[353697886,1739992243713,-500.0,0.00011283,2]
[353697887,1739992243722,-500.0,0.00011283,2]
[353697888,1739992243731,-721.64,0.00011283,2]
[353697889,1739992243741,-957.05,0.00011283,2]
[353697890,1739992243750,-500.0,0.00011283,2]
[353697891,1739992243760,-996.04,0.00011283,2]
[353697892,1739992243769,-624.9,0.00011283,2]
[353697893,1739992243778,-500.0,0.00011283,2]
[353697894,1739992243788,-500.0,0.00011283,2]
[353697895,1739992243798,-500.0,0.00011283,2]
[353697896,1739992243807,-500.0,0.00011283,2]
[353697897,1739992243817,-500.0,0.00011283,2]
[353697898,1739992243827,-500.0,0.00011284,2]
[353697899,1739992243839,-500.0,0.00011284,2]
[353697900,1739992243849,-500.0,0.00011284,2]
[353697901,1739992243858,-500.0,0.00011284,2]
[353697902,1739992243991,-500.0,0.00011284,2]
[353697903,1739992244002,-317.00465776,0.00011284,2]
[353697904,1739992244012,-500.0,0.00011284,2]
[353697905,1739992244022,-500.0,0.00011284,2]
[353697906,1739992244032,-500.0,0.00011284,2]
[353697907,1739992244040,-500.0,0.00011284,2]
[353697908,1739992244049,-218.51189651,0.00011284,2]
[353697909,1739992244056,-500.0,0.00011284,2]
[353697910,1739992244065,-500.0,0.00011284,2]
[353697911,1739992244073,-500.0,0.00011284,2]
[353697912,1739992244082,-500.0,0.00011284,2]
[353697913,1739992244091,-500.0,0.00011284,2]
[353697914,1739992244099,-500.0,0.00011284,2]
[353697915,1739992244108,-500.0,0.00011284,2]
[353697916,1739992244117,-500.0,0.00011284,2]
[353697917,1739992244126,-500.0,0.00011284,2]
[353697918,1739992244135,-500.0,0.00011284,2]
[353697919,1739992244144,-500.0,0.00011284,2]
[353697920,1739992244153,-500.0,0.00011284,2]
[353697921,1739992244164,-500.0,0.00011284,2]
[353697922,1739992244172,-500.0,0.00011284,2]
[353697923,1739992244182,-500.0,0.00011284,2]
[353697924,1739992244191,-500.0,0.00011284,2]
[353697925,1739992244201,-500.0,0.00011284,2]
[353697926,1739992244211,-500.0,0.00011284,2]
[353697927,1739992244222,-500.0,0.00011284,2]
[353697928,1739992244232,-500.0,0.00011284,2]
[353697929,1739992244241,-500.0,0.00011284,2]
[353697930,1739992244250,-500.0,0.00011284,2]
[353697931,1739992244260,-500.0,0.00011284,2]
[353697932,1739992244270,-500.0,0.00011284,2]
[353697933,1739992244280,-500.0,0.00011284,2]
[353697934,1739992244289,-500.0,0.00011284,2]
[353697935,1739992244298,-500.0,0.00011284,2]
[353697936,1739992244307,-500.0,0.00011284,2]
[353697937,1739992244318,-500.0,0.00011284,2]
[353697938,1739992244327,-500.0,0.00011284,2]
[353697939,1739992244339,-500.0,0.00011284,2]
[353697940,1739992244349,-500.0,0.00011284,2]
[353697941,1739992244358,-500.0,0.00011284,2]
[353697942,1739992244368,-500.0,0.00011284,2]
[353697943,1739992244378,-500.0,0.00011284,2]
[353697944,1739992244387,-500.0,0.00011284,2]
[353697945,1739992244397,-500.0,0.00011284,2]
[353697946,1739992244407,-500.0,0.00011284,2]
[353697947,1739992244417,-500.0,0.00011284,2]
[353697948,1739992244426,-500.0,0.00011284,2]
[353697949,1739992244437,-500.0,0.00011284,2]
[353697950,1739992244447,-177.06897196,0.00011284,2]
[353697951,1739992244462,-322.93102804,0.00011284,2]
[353697952,1739992244472,-500.0,0.00011284,2]
[353697953,1739992244481,-500.0,0.00011284,2]
[353697954,1739992244490,-500.0,0.00011284,2]
[353697955,1739992244499,-500.0,0.00011284,2]
[353697956,1739992244509,-500.0,0.00011284,2]
[353697957,1739992244520,-478.97254786,0.00011284,2]
[353697958,1739992244530,-500.0,0.00011284,2]
[353697959,1739992244540,-500.0,0.00011284,2]
[353697960,1739992244550,-99.92085818,0.00011284,2]
[353697961,1739992244562,-400.07914182,0.00011284,2]
[353697962,1739992244572,-500.0,0.00011284,2]
[353697963,1739992244582,-659.79,0.00011284,2]
[353697964,1739992244591,-315.64056419,0.00011284,2]
[353697965,1739992244603,-184.35943581,0.00011284,2]
[353697966,1739992244613,-500.0,0.00011284,2]
[353697967,1739992244623,-500.0,0.00011284,2]
[353697968,1739992244633,-500.0,0.00011284,2]
[353697969,1739992244642,-197.36191744,0.00011284,2]
[353697970,1739992244655,-302.63808256,0.00011284,2]
[353697971,1739992244667,-500.0,0.00011284,2]
[353697972,1739992244677,-500.0,0.00011284,2]
[353697973,1739992244687,-500.0,0.00011284,2]
[353697974,1739992244696,-500.0,0.00011284,2]
[353697975,1739992244706,-500.0,0.00011284,2]
[353697976,1739992244715,-500.0,0.00011284,2]
[353697977,1739992244725,-44.34688744,0.00011284,2]
[353697981,1739992246093,-758.3,0.00011118,2]
[353697982,1739992246104,-500.0,0.00011119,2]
[353697983,1739992246114,-227.6047606,0.00011119,2]
[353697985,1739992302669,189.01,8.767e-05,2]
[353697986,1739992498857,504.46,0.00010455,2]
[353697987,1739992506227,154.0,8.767e-05,3]
[353697988,1739992506475,154.0,0.0001009,3]
[353697989,1739992661719,464.21,0.00010496,2]
[353697990,1739992682975,250.0,0.00010496,2]
[353697991,1739992779914,589.98,0.0001032,2]
[353697992,1739992794716,1101.89,8.403e-05,2]
[353697993,1739992807373,154.0,0.00010455,3]
[353697994,1739992832215,157.98,0.00010304,2]
[353697995,1739992854210,1500.0,9.78e-05,2]
[353697996,1739992870318,500.0,0.00010305,2]
[353697997,1739992870528,510.16,0.00010305,2]
[353697998,1739992896799,4000.0,9.78e-05,2]
[353697999,1739992897641,4400.0,9.78e-05,2]
[353698000,1739992950550,2000.0,0.00010305,2]
[353698001,1739993070797,1033.638735,0.00010473,2]
[353698002,1739993106275,154.0,0.00010455,3]
[353698003,1739993108170,52867.92399904,0.0001,2]
[353698004,1739993121243,6390.8256,0.00010426,2]
[353698005,1739993168336,2356.6667,0.00010426,2]
[353698006,1739993172529,1060.0,0.00010412,2]
[353698007,1739993193693,1060.0,9.892e-05,2]
[353698008,1739993214867,1060.0,9.397e-05,2]
[353698009,1739993221286,2000.0,0.00010154,2]
[353698011,1739993236196,1060.0,9.277e-05,2]
[353698012,1739993242740,3800.0,9.78e-05,2]
[353698013,1739993257626,472.53815631,9.277e-05,2]
[353698014,1739993269677,1500.0,9.78e-05,2]
[353698015,1739993275211,45905.88615151,0.0001,2]
[353698016,1739993275235,6156.63757615,0.0001,2]
[353698017,1739993278763,155468.16198704,0.0001,2]
[353698018,1739993305056,375.71162388,7.888e-05,2]
[353698020,1739993359823,1000.0,0.00010146,2]
[353698024,1739993378700,204.41,0.00010146,2]
[353698029,1739993406384,154.0,0.00010146,3]
[353698030,1739993412630,267.77,0.00010135,2]
[353698042,1739993431969,-25432.94,0.00010526,2]
[353698043,1739993431979,-1201.93,0.00010588,2]
[353698044,1739993431988,-1101.89,0.00010667,2]
[353698045,1739993431999,-150.0,0.000108,2]
[353698046,1739993432009,-150.0,0.000108,2]
[353698047,1739993432018,-150.0,0.000108,2]
[353698048,1739993432027,-150.0,0.000108,2]
[353698049,1739993432036,-168.49,0.00010815,2]
[353698050,1739993432046,-150.0,0.00010909,2]
[353698051,1739993432055,-150.0,0.0001095,2]
[353698052,1739993432064,-1060.0,0.0001096,2]
[353698053,1739993432074,-150.0,0.00010998,2]
[353698054,1739993432084,-111601.83344081,0.00010999,2]
[353698055,1739993432094,-10008.65,0.00010999,2]
[353698056,1739993432103,-9999.99,0.00010999,2]
[353698057,1739993432112,-9999.99,0.00010999,2]
[353698058,1739993432122,-63737.44,0.00010999,2]
[353698059,1739993432133,-150.99,0.00010999,2]
[353698060,1739993432142,-999.99,0.00010999,2]
[353698061,1739993432151,-9999.99,0.00010999,2]
[353698062,1739993432160,-329.42,0.00010999,2]
[353698063,1739993432173,-1386.02,0.00010999,2]
[353698064,1739993432183,-3007.21,0.00010999,2]
[353698065,1739993432192,-499.99,0.00010999,2]
[353698066,1739993432202,-3610.99,0.00010999,2]
[353698067,1739993432211,-299.99,0.00010999,2]
[353698068,1739993432221,-802.75,0.00010999,2]
[353698069,1739993432235,-662.16,0.00010999,2]
[353698070,1739993432245,-666.95,0.00010999,2]
[353698071,1739993432254,-500.0,0.00010999,2]
[353698072,1739993432263,-853.16,0.00010999,2]
[353698073,1739993432272,-500.0,0.00010999,2]
[353698074,1739993432282,-500.0,0.00010999,2]
[353698075,1739993432291,-500.0,0.00010999,2]
[353698076,1739993432302,-500.0,0.00010999,2]
[353698077,1739993432312,-500.0,0.00010999,2]
[353698078,1739993432322,-656.98,0.00010999,2]
[353698079,1739993432332,-500.0,0.00010999,2]
[353698080,1739993432343,-500.0,0.00010999,2]
[353698081,1739993432353,-500.0,0.00010999,2]
[353698082,1739993432363,-500.0,0.00010999,2]
[353698083,1739993432373,-550.0,0.00011,2]
[353698084,1739993432385,-103416.28944179,0.00011,2]
[353698085,1739993432397,-1631.28368117,0.00011,2]
[353698086,1739993432410,-8474.02195251,0.00011,2]
[353698087,1739993432419,-187.80778692,0.00011,2]
[353698088,1739993432428,-40979.3121,0.00011,2]
[353698089,1739993432437,-3105.4608,0.00011,2]
[353698090,1739993432446,-20443.0565,0.00011,2]
[353698091,1739993432456,-150.0,0.00011018,2]
[353698093,1739993432465,-370.63538678,0.00011072,2]
[353698095,1739993432474,-802.75,0.00011081,2]
[353698097,1739993432484,-662.16,0.00011081,2]
[353698098,1739993432493,-666.95,0.00011081,2]
[353698100,1739993432502,-500.0,0.00011081,2]
[353698102,1739993432512,-853.16,0.00011081,2]
[353698104,1739993432521,-316.59513226,0.00011081,2]
[353698106,1739993432531,-500.0,0.00011081,2]
[353698108,1739993432540,-500.0,0.00011081,2]
[353698110,1739993432550,-500.0,0.00011081,2]
[353698112,1739993432560,-656.98,0.00011081,2]
[353698114,1739993432570,-500.0,0.00011081,2]
[353698117,1739993432579,-500.0,0.00011081,2]
[353698120,1739993432589,-500.0,0.00011081,2]
[353698123,1739993432598,-6424.39756003,0.00011099,2]
[353698125,1739993432609,-7501.5752,0.000111,2]
[353698128,1739993432618,-2406.2179,0.000111,2]
[353698131,1739993432628,-1318.4057,0.000111,2]
[353698134,1739993432639,-150.0,0.000111,2]
[353698137,1739993432648,-150.0,0.000111,2]
[353698140,1739993432658,-7821.6824,0.00011101,2]
[353698144,1739993432669,-6472.15237562,0.00011118,2]
[353698145,1739993432678,-509.45,0.00011118,2]
[353698147,1739993432688,-493.79,0.00011118,2]
[353698151,1739993432698,-496.08,0.00011118,2]
[353698153,1739993432707,-502.55726673,0.00011119,2]
[353698156,1739993432716,-335.2418606,0.00011119,2]
[353698159,1739993432726,-500.0,0.00011119,2]
[353698162,1739993432736,-500.0,0.00011119,2]
[353698164,1739993432746,-500.0,0.00011119,2]
[353698165,1739993432755,-500.0,0.00011119,2]
[353698168,1739993432765,-500.0,0.00011119,2]
[353698170,1739993432775,-5000.0,0.00011119,2]
[353698171,1739993432785,-500.0,0.00011119,2]
[353698173,1739993432794,-500.0,0.00011119,2]
[353698175,1739993432804,-500.0,0.00011119,2]
[353698177,1739993432813,-500.0,0.00011119,2]
[353698179,1739993432823,-500.0,0.00011119,2]
[353698181,1739993432832,-500.0,0.00011119,2]
[353698183,1739993432842,-500.0,0.00011119,2]
[353698185,1739993432851,-500.0,0.00011119,2]
[353698187,1739993432860,-500.0,0.00011119,2]
[353698189,1739993432870,-500.0,0.00011119,2]
[353698191,1739993432879,-500.0,0.00011119,2]
[353698194,1739993432891,-500.0,0.00011119,2]
[353698196,1739993432901,-500.0,0.00011119,2]
[353698198,1739993432910,-500.0,0.00011119,2]
[353698200,1739993432920,-432.54221255,0.00011119,2]
[353698201,1739993432929,-500.0,0.00011119,2]
[353698202,1739993432938,-150.0,0.00011127,2]
[353698203,1739993432947,-590.61,0.00011149,2]
[353698204,1739993432956,-500.0,0.00011149,2]
[353698205,1739993432965,-547.4,0.00011149,2]
[353698206,1739993432974,-720.53,0.00011149,2]
[353698207,1739993432983,-746.88,0.00011149,2]
[353698208,1739993432992,-500.0,0.00011149,2]
[353698209,1739993433001,-609.73,0.00011149,2]
[353698210,1739993433010,-1006.69,0.00011149,2]
[353698211,1739993433019,-716.76,0.00011149,2]
[353698212,1739993433028,-632.13,0.00011149,2]
[353698213,1739993433037,-551.19,0.00011149,2]
[353698215,1739993433046,-500.0,0.00011149,2]
[353698216,1739993433056,-500.0,0.00011149,2]
[353698218,1739993433066,-1182.04,0.00011149,2]
[353698220,1739993433075,-155.927599,0.00011149,2]
[353698222,1739993433086,-4400.0,0.0001115,2]
[353698224,1739993433096,-3800.0,0.0001115,2]
[353698226,1739993433106,-1500.0,0.0001115,2]
[353698228,1739993433116,-802.75,0.00011164,2]
[353698230,1739993433125,-662.16,0.00011164,2]
[353698232,1739993433136,-666.95,0.00011164,2]
[353698234,1739993433145,-500.0,0.00011164,2]
[353698236,1739993433155,-853.16,0.00011164,2]
[353698238,1739993433166,-500.0,0.00011164,2]
[353698240,1739993433176,-500.0,0.00011164,2]
[353698242,1739993433185,-656.98,0.00011164,2]
[353698244,1739993433196,-500.0,0.00011164,2]
[353698246,1739993433205,-500.0,0.00011164,2]
[353698248,1739993433215,-500.0,0.00011164,2]
[353698250,1739993433225,-500.0,0.00011178,2]
[353698252,1739993433239,-17878.30687077,0.0001118,2]
[353698258,1739993433291,-417.2299355,0.0001118,2]
[353698261,1739993433303,-622.1302618,0.0001118,2]
[353698263,1739993433316,-286.6875858,0.0001118,2]
[353698288,1739993433572,-496.769991,0.0001118,2]
[353698291,1739993433585,-768.21492302,0.0001118,2]
[353698293,1739993433597,-433.25400006,0.0001118,2]
[353698295,1739993433610,-348.816881,0.0001118,2]
[353698297,1739993433621,-269.46,0.0001118,2]
[353698300,1739993433635,-1489.07100804,0.0001118,2]
[353698304,1739993433671,-936.67725654,0.0001118,2]
[353698307,1739993433684,-563.32274346,0.0001118,2]
[353698310,1739993433704,-42057.35314684,0.0001118,2]
[353698312,1739993433717,-2841.50086094,0.0001118,2]
[353698315,1739993433736,-2266.51154028,0.0001118,2]
[353698317,1739993433748,-3320.7,0.0001118,2]
[353698319,1739993433761,-4615.6,0.0001118,2]
[353698321,1739993433774,-2149.0,0.0001118,2]
[353698659,1739993437503,731.9,0.00010308,2]
[353698683,1739993437710,731.9,0.00010318,2]
[353698685,1739993438150,731.9,0.00010329,2]
[353698730,1739993438602,731.9,0.0001034,2]
[353698755,1739993438829,731.9,0.00010351,2]
[353698778,1739993439043,731.9,0.00010362,2]
[353698801,1739993439300,731.9,0.00010373,2]
[353698823,1739993439538,731.9,0.00010383,2]
[353698846,1739993439754,731.9,0.00010394,2]
[353698871,1739993439950,731.9,0.00010405,2]
[353698897,1739993440170,731.9,0.00010416,2]
[353698904,1739993440221,-805.5158,0.000109,2]
[353698906,1739993440233,-500.0,0.00010999,2]
[353698908,1739993440244,-880.12,0.00010999,2]
[353698910,1739993440254,-376.2142,0.00010999,2]
[353699300,1739993443879,-123.7858,0.00010999,2]
[353699302,1739993443888,-500.0,0.00010999,2]
[353699304,1739993443900,-880.12,0.00011081,2]
[353699306,1739993443910,-500.0,0.00011081,2]
[353699308,1739993443919,-9155.09064618,0.00011099,2]
[353699310,1739993443929,-9155.09064616,0.00011136,2]
[353699312,1739993443939,-880.12,0.00011164,2]
[353699314,1739993443948,-500.0,0.00011164,2]
[353699316,1739993443958,-32687.36017355,0.0001118,2]
[353699318,1739993443967,-5000.0,0.00011181,2]
[353699320,1739993443977,-4858.3452,0.00011183,2]
[353699322,1739993443986,-744.98,0.00011199,2]
[353699324,1739993443995,-830.83,0.00011199,2]
[353699326,1739993444005,-500.0,0.00011199,2]
[353699328,1739993444015,-500.0,0.00011199,2]
[353699330,1739993444023,-500.0,0.00011199,2]
[353699332,1739993444033,-281.594515,0.00011199,2]
[353699334,1739993444042,-1743.35,0.00011199,2]
[353699336,1739993444051,-500.0,0.00011199,2]
[353699338,1739993444061,-157.109846,0.00011199,2]
[353699340,1739993444070,-894.69,0.00011199,2]
[353699342,1739993444079,-436.46234365,0.00011199,2]